bitfinex-derivatives/quotes_SOLF0:USTF0_20251207
["timestamp","ask_amount","ask_price","bid_price","bid_amount"]
[1765118850444,0.05267897,128.33,128.3,0.0565048]
[1765118850445,109.13777897,128.33,128.3,0.0565048]
[1765118851047,116.1088,128.32,128.3,0.0565048]
[1765118851253,7.0135,128.32,128.3,0.0565048]
[1765118851439,0.05267897,128.33,128.3,0.0565048]
[1765118851640,0.05267897,128.33,128.3,3.2965048]
[1765118852156,7.0095,128.39,128.31,3.24]
[1765118852558,109.0359,128.39,128.31,3.24]
[1765118852850,109.0431,128.38,128.31,3.24]
[1765118853049,0.05990439,128.36,128.33,3.29930765]
[1765118856157,7.07120439,128.36,128.33,0.05930765]
[1765118856352,7.07120439,128.36,128.33,3.29930765]
[1765118857363,116.0816,128.35,128.33,0.05930765]
[1765118859364,7.0118,128.35,128.33,0.05930765]
[1765118860966,0.05990439,128.36,128.33,0.05930765]
[1765118861567,109.12310439,128.36,128.33,0.05930765]
[1765118861874,0.05990439,128.36,128.33,3.29930765]
[1765118863465,0.05990439,128.36,128.33,0.05930765]
[1765118863663,7.0119,128.35,128.33,0.05930765]
[1765118864551,116.0799,128.35,128.33,0.05930765]
[1765118865259,7.0119,128.35,128.33,0.05930765]
[1765118869478,116.08,128.35,128.33,0.05930765]
[1765118872381,7.0119,128.35,128.33,0.05930765]
[1765118872580,7.0119,128.35,128.33,3.16930765]
[1765118875972,0.05990439,128.36,128.33,3.16930765]
[1765118876877,7.07110439,128.36,128.33,3.16930765]
[1765118877470,7.0118,128.35,128.33,0.05930765]
[1765118879572,7.0118,128.35,128.33,3.16930765]
[1765118879777,7.0118,128.35,128.33,0.05930765]
[1765118881678,116.08,128.35,128.33,0.05930765]
[1765118882383,116.08,128.35,128.27,3.11]
[1765118882384,7.0138,128.31,128.27,3.11]
[1765118882678,109.0816,128.34,128.27,3.11]
[1765118883378,0.05479068,128.32,128.3,3.12]
[1765118883572,109.0439,128.38,128.3,3.12]
[1765118883976,177.1725,128.4,128.3,3.12]
[1765118883977,109.0325,128.4,128.3,3.12]
[1765118884173,109.0053,128.43,128.31,3.12]
[1765118884484,7.0084,128.41,128.33,3.12]
[1765118884781,0.05119746,128.38,128.37,3.12]
[1765118884983,116.0037,128.44,128.37,3.12]
[1765118885178,7.0069,128.44,128.37,3.12]
[1765118886080,0.05541568,128.42,128.4,3.12]
[1765118888382,0.05541568,128.42,128.39,3.17414029]
[1765118890386,7.0058,128.46,128.4,3.12]
[1765118891477,0.05546651,128.44,128.42,3.17290613]
[1765118891676,0.05546651,128.44,128.42,3.16958422]
[1765118892881,0.05546651,128.44,128.42,0.04958422]
[1765118893088,0.05546651,128.44,128.42,3.16958422]
[1765118893882,116.05376651,128.44,128.42,0.04958422]
[1765118896484,0.05546651,128.44,128.42,3.16958422]
[1765118897796,7.06226651,128.44,128.42,0.04958422]
[1765118900191,108.9496,128.49,128.42,3.42958422]
[1765118900777,7.0052,128.47,128.42,3.42958422]
[1765118901186,0.04978833,128.46,128.42,3.42958422]
[1765118905793,108.9169,128.53,128.42,3.42958422]
[1765118905995,108.9169,128.53,128.44,3.38]
[1765118906600,7.0024,128.52,128.44,3.38]
[1765118906793,7.0024,128.52,128.48,3.38]
[1765118908102,7.0014,128.54,128.48,3.38]
[1765118908299,7.0014,128.54,128.5,0.05121263]
[1765118909701,7.0019,128.53,128.5,0.05121263]
[1765118910097,7.0019,128.53,128.5,3.43121263]
[1765118912109,7.0007,128.55,128.5,3.43121263]
[1765118913300,7.002,128.53,128.5,0.05121263]
[1765118913705,110.4756,128.53,128.5,0.05121263]
[1765118914202,7.0024,128.52,128.5,0.05121263]
[1765118914910,115.979805,128.52,128.5,0.00121263]
[1765118915107,7.0037,128.5,128.44,68.0]
[1765118916210,0.0520895,128.48,128.46,0.05075183]
[1765118916904,0.0520895,128.48,128.46,3.43075183]
[1765118918307,0.0520895,128.48,128.46,0.05075183]
[1765118922905,0.0520895,128.48,128.46,3.43075183]
[1765118923499,7.003,128.51,128.46,3.43075183]
[1765118923708,108.8946,128.56,128.46,3.43075183]
[1765118923907,108.8946,128.56,128.46,3.38]
[1765118924105,7.0007,128.55,128.47,3.38]
[1765118924310,108.9075,128.54,128.47,3.38]
[1765118924509,108.9075,128.54,128.42,68.0]
[1765118924510,108.9166,128.53,128.49,0.05284278]
[1765118924805,115.9352,128.51,128.49,0.05284278]
[1765118925712,7.0029,128.51,128.49,0.05284278]
[1765118927107,7.0029,128.51,128.49,3.43284278]
[1765118927599,7.0019,128.53,128.49,3.43284278]
[1765118927804,108.9075,128.54,128.49,3.43284278]
[1765118928216,7.0026,128.52,128.49,3.43284278]
[1765118928810,7.0031,128.51,128.49,0.05284278]
[1765118933519,7.002,128.53,128.49,3.43284278]
[1765118935408,7.0025,128.52,128.49,3.43284278]
[1765118935613,108.9239,128.52,128.49,0.05284278]
[1765118936614,7.0031,128.51,128.49,0.05284278]
[1765118938212,7.0031,128.51,128.49,3.43284278]
[1765118938413,7.0017,128.53,128.49,3.43284278]
[1765118940220,7.0025,128.52,128.49,0.05284278]
[1765118941019,7.001,128.55,128.49,3.18284278]
[1765118941622,6.9997,128.57,128.49,3.18284278]
[1765118941824,108.8814,128.57,128.52,3.18783046]
[1765118942126,7.0008,128.55,128.52,3.18783046]
[1765118943130,7.0014,128.54,128.52,0.05783046]
[1765118943720,7.0002,128.56,128.52,3.18783046]
[1765118944616,108.8564,128.6,128.52,3.18783046]
[1765118944817,108.8564,128.6,128.55,0.04972626]
[1765118944818,108.8653,128.59,128.55,0.04972626]
[1765118945221,108.8544,128.61,128.55,0.04972626]
[1765118945222,108.8575,128.6,128.55,0.04972626]
[1765118945429,108.8678,128.59,128.55,0.04972626]
[1765118945625,108.8575,128.6,128.55,0.04972626]
[1765118945626,108.8575,128.6,128.55,3.17972626]
[1765118946023,6.9978,128.6,128.55,3.17972626]
[1765118946424,108.8368,128.63,128.55,3.17972626]
[1765118946425,108.8261,128.64,128.55,3.17972626]
[1765118946627,6.9965,128.63,128.58,3.18572329]
[1765118947528,108.8017,128.67,128.58,3.18572329]
[1765118947726,108.8017,128.67,128.61,0.05572422]
[1765118947923,115.8124,128.65,128.61,0.05572422]
[1765118948324,108.7972,128.67,128.61,3.18572422]
[1765118948831,108.8091,128.66,128.61,0.05572422]
[1765118949630,108.7885,128.68,128.61,3.18572422]
[1765118950531,115.7821,128.68,128.61,3.18572422]
[1765118951223,108.8089,128.66,128.61,3.18572422]
[1765118951831,115.8209,128.64,128.61,0.05572422]
[1765118952519,108.8089,128.66,128.61,0.05572422]
[1765118952520,115.8006,128.66,128.61,3.18572422]
[1765118953120,108.7933,128.68,128.61,3.18572422]
[1765118953326,115.7869,128.68,128.61,3.18572422]
[1765118953618,6.9936,128.68,128.61,3.18572422]
[1765118954945,176.6381,128.7,128.61,3.18572422]
[1765118954946,6.9925,128.7,128.61,3.18572422]
[1765118955132,6.9925,128.7,128.64,0.05015203]
[1765118955335,6.9914,128.72,128.64,3.18015203]
[1765118955632,6.9914,128.72,128.67,3.1858144]
[1765118955825,115.7492,128.72,128.67,0.0558144]
[1765118956732,115.7461,128.72,128.67,0.0558144]
[1765118957336,6.9914,128.72,128.67,3.1858144]
[1765118957728,6.9914,128.72,128.67,0.0558144]
[1765118957934,6.9914,128.72,128.67,3.1658144]
[1765118958239,108.7418,128.74,128.67,3.1658144]
[1765118958739,108.7505,128.73,128.67,0.0558144]
[1765118959141,108.7418,128.74,128.67,0.0558144]
[1765118959342,115.7258,128.75,128.67,3.1658144]
[1765118959641,108.7411,128.74,128.7,0.05289525]
[1765118959830,108.7578,128.72,128.7,0.05289525]
[1765118961436,6.9919,128.71,128.7,0.05289525]
[1765118961836,108.7266,128.76,128.7,0.05289525]
[1765118962240,115.7191,128.75,128.7,0.05289525]
[1765118962837,6.9898,128.75,128.7,3.16289525]
[1765118963640,6.9898,128.75,128.7,0.05289525]
[1765118964740,6.9898,128.75,128.7,3.16289525]
[1765118966040,6.9888,128.77,128.7,3.16289525]
[1765118966338,6.9888,128.77,128.72,0.05575068]
[1765118967740,6.9877,128.79,128.72,3.16575068]
[1765118967947,108.6731,128.82,128.72,3.16575068]
[1765118968139,108.659,128.84,128.75,3.16242255]
[1765118968345,176.439,128.84,128.78,0.04941962]
[1765118968744,6.9862,128.82,128.78,0.04941962]
[1765118970449,6.9867,128.81,128.78,0.04941962]
[1765118970646,108.6874,128.8,128.78,0.04941962]
[1765118970851,115.6747,128.8,128.78,0.04941962]
[1765118971039,108.6874,128.8,128.72,3.11]
[1765118971342,108.6954,128.79,128.72,3.11]
[1765118972143,0.05553615,128.77,128.74,0.05094293]
[1765118972645,0.05553615,128.77,128.74,3.16094293]
[1765118974741,0.05553615,128.77,128.74,0.05094293]
[1765118975552,7.04433615,128.77,128.74,0.05094293]
[1765118975854,0.05553615,128.77,128.74,0.05094293]
[1765118977553,6.9894,128.76,128.74,0.05094293]
[1765118977754,0.05553615,128.77,128.74,3.16094293]
[1765118982856,6.9862,128.82,128.74,3.16094293]
[1765118983056,6.9862,128.82,128.74,3.11]
[1765118983252,108.6327,128.87,128.74,3.11]
[1765118983457,6.985,128.84,128.75,3.11]
[1765118983845,6.985,128.84,128.78,3.16220941]
[1765118984045,6.984,128.86,128.78,3.16220941]
[1765118984357,108.6487,128.85,128.81,0.05922192]
[1765118984861,108.6616,128.83,128.81,0.05922192]
[1765118985746,115.6473,128.83,128.81,0.05922192]
[1765118985944,108.6726,128.82,128.75,3.11]
[1765118986967,0.04895044,128.8,128.77,0.04959921]
[1765118987262,0.04895044,128.8,128.77,3.15959921]
[1765118987962,6.9845,128.85,128.77,3.15959921]
[1765118988151,6.9845,128.85,128.77,3.11]
[1765118988952,0.02117383,128.82,128.8,0.05170139]
[1765118989352,0.02117383,128.82,128.8,3.41170139]
[1765118989958,0.02117383,128.82,128.8,0.05170139]
[1765118992963,0.02117383,128.82,128.81,3.36]
[1765118993264,0.02117383,128.82,128.8,0.05170139]
[1765118995059,0.02117383,128.82,128.8,3.35170139]
[1765118995364,0.02117383,128.82,128.8,0.05170139]
[1765118997257,0.02117383,128.82,128.76,67.66]
[1765118997258,6.9872,128.8,128.76,67.66]
[1765118998164,0.05846166,128.79,128.77,0.05001841]
[1765118998364,0.05846166,128.79,128.77,0.05299353]
[1765118998564,7.04626166,128.79,128.71,3.3]
[1765118998759,6.9878,128.79,128.71,3.3]
[1765118998960,6.9884,128.78,128.71,3.3]
[1765118999362,108.7046,128.78,128.7,67.64]
[1765118999560,0.05367927,128.75,128.73,0.05940399]
[1765119000160,108.78417927,128.75,128.73,0.05940399]
[1765119000362,0.05367927,128.75,128.73,0.05940399]
[1765119000564,115.77297927,128.75,128.73,0.05940399]
[1765119000760,108.78297927,128.75,128.7,67.64]
[1765119000959,108.78297927,128.75,128.65,3.3]
[1765119001168,6.9917,128.72,128.65,3.3]
[1765119001366,108.7549,128.72,128.65,3.3]
[1765119001555,108.7549,128.72,128.64,67.64]
[1765119001960,0.05476358,128.69,128.67,0.05279645]
[1765119002767,0.05476358,128.69,128.67,3.35279645]
[1765119003269,176.3485,128.78,128.67,3.35279645]
[1765119003467,6.99,128.75,128.67,3.3]
[1765119003662,108.7378,128.74,128.67,3.3]
[1765119003867,108.7463,128.73,128.64,70.94]
[1765119004060,108.7333,128.75,128.65,3.3]
[1765119004258,0.05341112,128.71,128.69,0.05513131]
[1765119006571,7.04551112,128.71,128.69,0.05513131]
[1765119006772,0.05341112,128.71,128.69,3.35513131]
[1765119006972,0.05341112,128.71,128.69,0.05513131]
[1765119008262,7.04561112,128.71,128.69,0.05513131]
[1765119009070,6.9936,128.68,128.62,3.3]
[1765119010173,0.0504416,128.66,128.64,0.05097753]
[1765119010970,0.0504416,128.66,128.64,3.35097753]
[1765119011170,7.0453416,128.66,128.64,0.05097753]
[1765119012171,0.0504416,128.66,128.64,3.35097753]
[1765119017982,0.0504416,128.66,128.64,0.05097753]
[1765119021977,0.0504416,128.66,128.64,3.18097753]
[1765119023785,0.0504416,128.66,128.64,0.05097753]
[1765119023786,6.9951,128.65,128.64,0.05097753]
[1765119029500,108.8336,128.63,128.54,3.13]
[1765119029795,108.8581,128.6,128.55,3.13]
[1765119030504,0.04980903,128.59,128.56,3.18330495]
[1765119031098,108.8184,128.65,128.56,3.18330495]
[1765119031302,108.8184,128.65,128.56,3.13]
[1765119031999,108.8332,128.63,128.56,3.13]
[1765119032201,0.05679118,128.61,128.59,3.13]
[1765119039011,115.785,128.68,128.59,3.13]
[1765119039220,6.9937,128.68,128.59,3.13]
[1765119040100,0.05189419,128.65,128.62,3.18285815]
[1765119043316,108.7431,128.74,128.63,3.13]
[1765119043512,115.63139366,128.78,128.64,3.13]
[1765119043704,5.80677029,128.77,128.64,3.13]
[1765119043908,5.80677029,128.76,128.64,3.13]
[1765119044216,108.7062,128.78,128.64,3.13]
[1765119044415,0.05721282,128.71,128.68,3.18964865]
[1765119048714,0.05721282,128.71,128.68,0.05964865]
[1765119050113,7.04951282,128.71,128.68,0.05964865]
[1765119050313,0.05721282,128.71,128.68,0.05964865]
[1765119050510,108.7717,128.7,128.68,0.05964865]
[1765119050814,115.7654,128.7,128.68,0.05964865]
[1765119051012,6.9927,128.7,128.68,0.05964865]
[1765119051615,0.05721282,128.71,128.68,3.43964865]
[1765119054718,0.05721282,128.71,128.68,0.05964865]
[1765119055113,0.05721282,128.71,128.68,3.42964865]
[1765119062317,108.774,128.7,128.68,0.05964865]
[1765119063521,224.5409,128.7,128.68,0.05964865]
[1765119064120,6.9948,128.66,128.62,3.37]
[1765119064726,6.9948,128.66,128.59,3.37]
[1765119064727,115.8117,128.65,128.59,3.37]
[1765119065130,0.05377042,128.63,128.62,3.37]
[1765119065325,0.05377042,128.63,128.61,0.05493097]
[1765119065918,0.05377042,128.63,128.61,3.42493097]
[1765119069936,6.9967,128.62,128.61,3.42493097]
[1765119071742,6.9967,128.62,128.61,0.05493097]
[1765119072629,8.5567,128.62,128.61,0.05493097]
[1765119072930,108.88707042,128.63,128.61,0.05493097]
[1765119072931,70.82218031,128.63,128.61,0.05493097]
[1765119073839,70.87785196,128.63,128.61,0.05493097]
[1765119074429,6.9967,128.62,128.61,0.05493097]
[1765119076139,108.8742,128.58,128.47,3.37]
[1765119076440,108.8909,128.56,128.48,4.93]
[1765119076633,108.8909,128.56,128.48,3.37]
[1765119076934,0.05796246,128.53,128.51,0.04980741]
[1765119078529,0.05796246,128.53,128.51,1.60980741]
[1765119079541,7.05996246,128.53,128.51,1.60980741]
[1765119079735,7.05996246,128.53,128.51,0.04980741]
[1765119080435,7.0029,128.51,128.45,3.27]
[1765119080736,7.0029,128.51,128.46,4.83]
[1765119080940,7.0029,128.51,128.46,3.27]
[1765119081240,7.0036,128.5,128.46,3.27]
[1765119081435,108.9096,128.54,128.47,0.05223564]
[1765119081636,108.9096,128.54,128.48,3.27]
[1765119081637,7.0025,128.52,128.48,3.27]
[1765119081843,0.04961518,128.52,128.49,3.32289298]
[1765119083237,0.04961518,128.52,128.5,1.56]
[1765119084538,7.05201518,128.52,128.5,1.56]
[1765119085141,108.97421518,128.52,128.49,0.05289298]
[1765119085335,7.0033,128.5,128.49,0.05289298]
[1765119085537,0.04961518,128.52,128.49,3.32289298]
[1765119086643,7.05201518,128.52,128.49,3.32289298]
[1765119088247,0.04961518,128.52,128.49,3.32289298]
[1765119088545,7.0014,128.54,128.49,3.32289298]
[1765119089641,108.901,128.55,128.49,3.32289298]
[1765119089642,7.0023,128.52,128.49,3.32289298]
[1765119092642,115.9261,128.52,128.49,3.32289298]
[1765119094247,7.003,128.51,128.49,3.32289298]
[1765119098751,7.05956838,128.53,128.49,3.32289298]
[1765119099645,7.0026,128.52,128.49,3.32289298]
[1765119100741,7.0032,128.51,128.49,0.05289298]
[1765119100948,115.9356,128.51,128.49,0.05289298]
[1765119101851,7.0032,128.51,128.49,0.05289298]
[1765119102153,7.0032,128.51,128.49,3.32289298]
[1765119102551,7.0032,128.51,128.49,0.05289298]
[1765119102948,7.0032,128.51,128.49,3.32289298]
[1765119103947,0.05766838,128.53,128.49,4.88289298]
[1765119104151,0.05766838,128.53,128.49,3.32289298]
[1765119107754,7.05976838,128.53,128.49,3.32289298]
[1765119110252,0.05766838,128.53,128.49,3.32289298]
[1765119112052,7.05956838,128.53,128.49,3.32289298]
[1765119112352,0.05766838,128.53,128.49,3.32289298]
[1765119113155,7.0027,128.52,128.49,3.32289298]
[1765119113351,0.05766838,128.53,128.49,3.32289298]
[1765119118963,7.05946838,128.53,128.49,3.32289298]
[1765119120574,108.8698,128.59,128.49,3.32289298]
[1765119120768,108.8997,128.55,128.49,3.27]
[1765119120971,7.0029,128.51,128.44,3.31]
[1765119121173,108.9408,128.5,128.44,3.31]
[1765119121677,0.05383626,128.48,128.46,0.0553987]
[1765119121865,0.05383626,128.48,128.46,3.3653987]
[1765119122376,0.05383626,128.48,128.46,0.0553987]
[1765119122671,0.05383626,128.48,128.46,3.3653987]
[1765119124475,0.05383626,128.48,128.46,0.0553987]
[1765119125384,0.05383626,128.48,128.46,3.3653987]
[1765119130981,0.05383626,128.48,128.46,0.0553987]
[1765119131181,0.05383626,128.48,128.46,3.3653987]
[1765119131786,0.05383626,128.48,128.46,0.0553987]
[1765119135381,0.05383626,128.48,128.46,3.3653987]
[1765119135581,7.05843626,128.48,128.46,0.0553987]
[1765119136284,116.01613626,128.48,128.46,0.0553987]
[1765119137484,117.57613626,128.48,128.46,0.0553987]
[1765119137886,116.01613626,128.48,128.46,0.0553987]
[1765119138991,7.05843626,128.48,128.46,0.0553987]
[1765119139288,7.05843626,128.48,128.46,3.2853987]
[1765119141189,7.05843626,128.48,128.46,0.0553987]
[1765119142486,8.61843626,128.48,128.46,0.0553987]
[1765119142687,7.05843626,128.48,128.46,0.0553987]
[1765119143686,7.05843626,128.48,128.36,74.5506]
[1765119143687,109.0087,128.42,128.38,3.23]
[1765119144083,7.0089,128.4,128.38,3.23]
[1765119144484,7.06263566,128.4,128.38,3.28085496]
[1765119144686,7.06263566,128.4,128.38,0.05085496]
[1765119144891,7.06263566,128.4,128.38,3.28085496]
[1765119145595,7.06263566,128.4,128.38,0.05085496]
[1765119147394,7.06263566,128.4,128.38,3.28085496]
[1765119147895,7.06263566,128.4,128.38,0.05085496]
[1765119150300,7.06263566,128.4,128.38,3.28085496]
[1765119150602,0.05373566,128.4,128.38,3.28085496]
[1765119151189,7.0078,128.42,128.38,3.28085496]
[1765119152091,0.05153657,128.41,128.38,3.28085496]
[1765119155988,7.0058,128.46,128.38,3.28085496]
[1765119156192,122.9359,128.52,128.39,3.23]
[1765119156894,108.9677,128.47,128.39,3.23]
[1765119157104,0.03158312,128.45,128.43,0.05460892]
[1765119157403,0.03158312,128.45,128.43,0.05715303]
[1765119157702,116.02218312,128.45,128.43,0.05715303]
[1765119158305,7.03798312,128.45,128.43,0.05715303]
[1765119159605,0.03158312,128.45,128.43,3.28715303]
[1765119160009,108.9308,128.52,128.43,3.28715303]
[1765119160202,108.9308,128.52,128.43,3.23]
[1765119160402,7.0039,128.49,128.43,3.23]
[1765119160706,108.9497,128.49,128.43,3.23]
[1765119160906,7.0047,128.48,128.43,3.23]
[1765119161103,108.9439,128.5,128.45,3.23]
[1765119161402,108.9439,128.5,128.47,3.23]
[1765119161807,7.0041,128.49,128.46,3.28476542]
[1765119162107,108.9247,128.52,128.46,3.28476542]
[1765119162803,7.0036,128.5,128.46,3.28476542]
[1765119165312,7.004,128.49,128.46,3.28476542]
[1765119167108,115.9232,128.53,128.46,3.28476542]
[1765119167513,7.0021,128.53,128.46,3.28476542]
[1765119167812,108.9037,128.55,128.46,3.28476542]
[1765119168012,176.4037,128.55,128.49,0.05184061]
[1765119168715,7.0021,128.53,128.49,0.05184061]
[1765119170504,7.0007,128.55,128.49,3.26184061]
[1765119170909,108.9004,128.55,128.49,0.05184061]
[1765119172605,7.0018,128.53,128.49,0.05184061]
[1765119176313,176.4075,128.52,128.43,3.21]
[1765119177416,0.05184061,128.49,128.46,0.05734992]
[1765119178815,7.0046,128.48,128.46,0.05734992]
[1765119180113,115.9635,128.48,128.46,0.05734992]
[1765119180321,108.9751,128.46,128.37,3.25]
[1765119181316,0.05296073,128.43,128.4,3.29895987]
[1765119182324,108.9423,128.5,128.41,3.25]
[1765119182514,108.9493,128.49,128.41,3.25]
[1765119182711,108.9604,128.48,128.41,3.25]
[1765119183016,115.9718,128.47,128.41,3.25]
[1765119183212,0.05156564,128.45,128.43,0.05671857]
[1765119185118,0.05156564,128.45,128.43,3.30671857]
[1765119189431,109.0512,128.37,128.31,3.25]
[1765119189623,109.0789,128.34,128.24,3.25]
[1765119189829,109.0865,128.33,128.24,3.25]
[1765119190019,109.0939,128.32,128.24,3.25]
[1765119190421,0.05435525,128.29,128.27,0.05989941]
[1765119190827,0.05435525,128.29,128.27,3.30989941]
[1765119191525,109.0738,128.35,128.28,3.25]
[1765119192231,7.0128,128.33,128.28,3.25]
[1765119192420,109.0597,128.36,128.28,3.25]
[1765119192626,0.05956552,128.32,128.3,3.25]
[1765119192821,0.05956552,128.32,128.3,3.30668198]
[1765119193325,7.0105,128.37,128.31,3.25]
[1765119193828,109.051,128.37,128.31,3.25]
[1765119194430,109.051,128.37,128.33,0.05614404]
[1765119194627,109.0684,128.35,128.33,0.05614404]
[1765119195637,116.0803,128.35,128.33,0.05614404]
[1765119196624,7.0119,128.35,128.33,3.30614404]
[1765119196826,7.0105,128.37,128.33,3.30614404]
[1765119197339,7.0113,128.36,128.33,0.05614404]
[1765119197535,109.0601,128.36,128.33,0.05614404]
[1765119198534,7.0118,128.35,128.33,0.05614404]
[1765119201743,109.0536,128.37,128.33,3.42614404]
[1765119201744,7.0107,128.37,128.33,3.42614404]
[1765119202137,109.0322,128.4,128.33,3.42614404]
[1765119202638,109.0683,128.35,128.33,0.05614404]
[1765119202941,109.0683,128.35,128.33,0.05723719]
[1765119203141,109.0606,128.36,128.33,0.05723719]
[1765119203142,7.012,128.34,128.33,0.05723719]
[1765119203540,109.0519,128.37,128.33,0.05723719]
[1765119204442,7.0112,128.36,128.33,0.05723719]
[1765119205142,7.01,128.38,128.33,3.42723719]
[1765119209948,7.01,128.38,128.33,0.05723719]
[1765119210250,7.0106,128.37,128.33,0.05723719]
[1765119211046,7.0106,128.37,128.33,3.42723719]
[1765119211246,7.0094,128.39,128.33,3.42723719]
[1765119211644,7.0107,128.37,128.33,0.05723719]
[1765119212150,109.0574,128.37,128.33,0.05723719]
[1765119212553,7.0117,128.35,128.33,0.05723719]
[1765119212753,116.0801,128.35,128.33,0.05723719]
[1765119212946,109.0795,128.34,128.27,3.37]
[1765119213250,109.0684,128.35,128.26,67.48]
[1765119213251,109.094,128.32,128.26,67.48]
[1765119214051,0.0577926,128.3,128.28,0.05628034]
[1765119214453,7.0147,128.29,128.28,0.05628034]
[1765119215258,0.0577926,128.3,128.28,3.42628034]
[1765119215459,0.0577926,128.3,128.28,0.05628034]
[1765119216856,7.0723926,128.3,128.28,0.05628034]
[1765119217653,116.1842926,128.3,128.28,0.05628034]
[1765119220663,116.1842926,128.3,128.28,3.42628034]
[1765119220860,116.1842926,128.3,128.28,0.05628034]
[1765119221967,109.14,128.27,128.21,3.37]
[1765119222168,109.1618,128.24,128.21,3.37]
[1765119223066,109.22008939,128.24,128.21,3.42738323]
[1765119223465,116.189,128.23,128.21,3.42738323]
[1765119224169,7.0183,128.23,128.21,3.42738323]
[1765119225774,109.1898,128.21,128.15,3.37]
[1765119225960,176.74048939,128.24,128.15,3.37]
[1765119225961,109.1622,128.24,128.15,3.37]
[1765119226165,109.1702,128.23,128.15,3.37]
[1765119226362,109.1536,128.25,128.15,3.37]
[1765119226769,109.1536,128.25,128.2,3.37]
[1765119227571,116.1706,128.25,128.2,3.37]
[1765119227767,0.04915227,128.24,128.2,3.37]
[1765119228368,109.109,128.31,128.2,3.37]
[1765119228868,109.0899,128.33,128.22,3.2]
[1765119229277,0.05128986,128.29,128.27,3.2]
[1765119229575,7.0127,128.33,128.27,3.2]
[1765119230173,116.0859,128.35,128.27,3.2]
[1765119230366,116.0859,128.35,128.31,3.2]
[1765119230770,7.0124,128.34,128.3,3.25273055]
[1765119231570,109.0309,128.4,128.3,3.25273055]
[1765119231770,109.0309,128.4,128.34,3.25311066]
[1765119231967,116.0533,128.38,128.34,3.25311066]
[1765119233077,7.0089,128.4,128.34,3.25311066]
[1765119235068,7.0095,128.39,128.34,3.25311066]
[1765119235268,7.0095,128.39,128.35,0.05574515]
[1765119235467,109.0195,128.41,128.35,3.25574515]
[1765119235468,7.0084,128.41,128.35,3.25574515]
[1765119236268,7.0089,128.4,128.35,3.25574515]
[1765119236468,7.0089,128.4,128.36,0.05545504]
[1765119239383,7.0089,128.4,128.36,3.25545504]
[1765119240283,7.0089,128.4,128.36,0.05545504]
[1765119240489,7.008,128.42,128.36,3.25545504]
[1765119240685,109.0005,128.43,128.36,0.05545504]
[1765119240982,109.0005,128.43,128.38,0.05980229]
[1765119241388,7.0089,128.4,128.38,0.05980229]
[1765119241779,109.0197,128.41,128.33,3.2]
[1765119242581,7.0099,128.38,128.33,3.2]
[1765119242780,0.05872325,128.37,128.34,3.33658742]
[1765119243291,1.35558888,128.45,128.34,3.33658742]
[1765119243495,108.9777,128.46,128.34,3.28]
[1765119244186,108.9777,128.46,128.39,0.05369197]
[1765119244586,108.9843,128.45,128.39,0.05369197]
[1765119245887,7.0075,128.43,128.39,0.05369197]
[1765119246987,7.0078,128.42,128.39,0.05369197]
[1765119247291,109.0102,128.42,128.33,3.28]
[1765119247591,7.0094,128.39,128.33,3.28]
[1765119247987,109.0171,128.41,128.3,10.2939]
[1765119247988,109.0275,128.4,128.3,10.2939]
[1765119248193,0.05825532,128.36,128.34,0.05248108]
[1765119250393,7.06925532,128.36,128.34,0.05248108]
[1765119255998,7.06925532,128.36,128.34,0.00248108]
[1765119256396,8.62925532,128.36,128.34,0.00248108]
[1765119257898,7.06925532,128.36,128.34,0.00248108]
[1765119258393,8.62925532,128.36,128.34,0.00248108]
[1765119259594,7.06925532,128.36,128.34,0.00248108]
[1765119260701,1.56,128.35,128.34,0.00248108]
[1765119261801,7.06925532,128.36,128.34,0.00248108]
[1765119263403,1.56,128.35,128.34,0.00248108]
[1765119265098,7.06925532,128.36,128.34,0.00248108]
[1765119265309,67.48,128.35,128.34,0.00248108]
[1765119266402,7.06925532,128.36,128.34,0.00248108]
[1765119266593,67.48,128.35,128.34,0.00248108]
[1765119266794,7.06925532,128.36,128.34,0.00248108]
[1765119271810,74.54925532,128.36,128.34,0.00248108]